bitfinex/quotes_SOLUSD_20250621
["timestamp","ask_amount","ask_price","bid_price","bid_amount"]
[1750507881093,4.55944463,142.44,142.43,0.6]
[1750507881412,9.81812074,142.44,142.43,0.6]
[1750507881712,4.55944463,142.44,142.43,7.62099276]
[1750507882103,89.4,142.45,142.43,7.62099276]
[1750507882104,93.95944463,142.45,142.44,0.6]
[1750507882291,99.21677579,142.45,142.44,28.92]
[1750507883715,99.21677579,142.45,142.44,35.94049985]
[1750507884714,89.4,142.45,142.44,35.94049985]
[1750507884915,93.95944463,142.45,142.44,35.94049985]
[1750507885416,93.95944463,142.45,142.44,35.34049985]
[1750507886191,93.95944463,142.45,142.44,35.94049985]
[1750507886919,89.4,142.45,142.44,35.94049985]
[1750507887218,93.95944463,142.45,142.44,35.94049985]
[1750507888313,89.4,142.45,142.44,35.94049985]
[1750507888508,93.95944463,142.45,142.44,35.94049985]
[1750507890606,89.4,142.45,142.44,35.94049985]
[1750507894518,89.4,142.45,142.44,35.34049985]
[1750507894821,94.67944463,142.45,142.44,7.02049985]
[1750507895122,99.92150767,142.45,142.44,35.32049985]
[1750507896397,99.92150767,142.45,142.44,28.3]
[1750507897708,10.52150767,142.45,142.44,28.3]
[1750507898922,90.12,142.44,142.43,7.02099276]
[1750507899131,99.92150767,142.44,142.43,7.02099276]
[1750507900016,99.92150767,142.44,142.42,7.02148574]
[1750507900323,10.52150767,142.43,142.42,7.02148574]
[1750507914415,9.80150767,142.43,142.41,7.02197879]
[1750507914615,5.30944463,142.42,142.41,7.02197879]
[1750507915316,5.30944463,142.42,142.38,7.02345835]
[1750507915520,4.55944463,142.39,142.38,7.02345835]
[1750507915722,5.30944463,142.39,142.38,7.02345835]
[1750507916549,4.55944463,142.39,142.37,12.9638328]
[1750507916833,5.30944463,142.38,142.37,12.9638328]
[1750507918540,31.30944463,142.38,142.37,12.9638328]
[1750507920417,26.75,142.38,142.35,52.90728485]
[1750507920628,5.24206304,142.4,142.35,53.50728485]
[1750507920629,4.55944463,142.36,142.35,53.50728485]
[1750507921917,4.55944463,142.36,142.35,52.90728485]
[1750507924748,4.55944463,142.36,142.35,53.50728485]
[1750507925331,4.55944463,142.37,142.35,53.50728485]
[1750507925519,4.55944463,142.37,142.36,0.6]
[1750507925723,4.55944463,142.38,142.36,0.6]
[1750507925944,4.55944463,142.38,142.37,28.94]
[1750507926839,4.55944463,142.38,142.37,35.96395167]
[1750507928024,4.55944463,142.39,142.38,0.6]
[1750507928239,4.55944463,142.4,142.38,0.6]
[1750507928443,4.55944463,142.4,142.39,28.34]
[1750507929125,4.55944463,142.4,142.39,35.36296509]
[1750507935038,0.69,142.39,142.38,7.02325933]
[1750507935243,5.24944463,142.39,142.38,35.34325933]
[1750507936943,7.82031428,142.39,142.38,35.34325933]
[1750507940138,7.13031428,142.39,142.38,35.34325933]
[1750507942345,7.82031428,142.39,142.38,35.34325933]
[1750507942763,13.05735803,142.39,142.38,35.34325933]
[1750507942968,7.82031428,142.39,142.38,35.34325933]
[1750507943374,13.05735803,142.39,142.38,35.34325933]
[1750507943675,7.82031428,142.39,142.38,35.34325933]
[1750507944048,12.36735803,142.39,142.38,35.34325933]
[1750507944249,7.13031428,142.39,142.38,35.34325933]
[1750507944852,12.36735803,142.39,142.38,35.34325933]
[1750507945054,7.13031428,142.39,142.38,35.34325933]
[1750507945256,12.36735803,142.39,142.38,35.34325933]
[1750507945461,7.13031428,142.39,142.38,35.34325933]
[1750507945664,12.36735803,142.39,142.38,35.34325933]
[1750507945856,7.13031428,142.39,142.38,35.34325933]
[1750507946052,12.36735803,142.39,142.38,35.34325933]
[1750507946249,7.13031428,142.39,142.38,35.34325933]
[1750507946558,7.13031428,142.39,142.38,35.94325933]
[1750507947162,12.38380725,142.4,142.38,35.94325933]
[1750507947373,7.13031428,142.4,142.38,35.94325933]
[1750507947669,12.38381949,142.4,142.38,35.94325933]
[1750507947966,7.13031428,142.4,142.38,35.94325933]
[1750507948144,7.13031428,142.39,142.38,35.94325933]
[1750507948753,7.13031428,142.4,142.38,53.5019052]
[1750507952157,5.25463667,142.41,142.4,7.02247191]
[1750507952357,7.13031428,142.42,142.4,35.94247191]
[1750507952664,7.13031428,142.42,142.4,35.34247191]
[1750507952871,7.13031428,142.42,142.41,0.6]
[1750507953876,7.13031428,142.44,142.41,0.6]
[1750507954079,7.13031428,142.43,142.42,28.32]
[1750507954457,7.13031428,142.43,142.42,35.34148574]
[1750507959869,96.53031428,142.43,142.42,35.34148574]
[1750507962888,93.95888893,142.43,142.42,35.34148574]
[1750507964677,89.4,142.43,142.42,35.34148574]
[1750507965990,89.4,142.43,142.42,35.94148574]
[1750507966297,89.4,142.43,142.42,35.34148574]
[1750507967471,93.95888893,142.43,142.42,35.34148574]
[1750507968887,94.67888893,142.43,142.42,35.34148574]
[1750507969299,93.95888893,142.43,142.42,35.34148574]
[1750507972803,89.4,142.43,142.42,35.34148574]
[1750507974605,89.4,142.43,142.42,35.94148574]
[1750507975402,89.4,142.43,142.42,35.34148574]
[1750507977518,4.55888893,142.44,142.42,35.34148574]
[1750507977695,5.27888893,142.44,142.42,35.34148574]
[1750507978398,5.27888893,142.43,142.42,35.34148574]
[1750507981711,4.55888893,142.43,142.42,35.34148574]
[1750507981882,4.55888893,142.44,142.42,52.8952001]
[1750507982283,150.97888893,142.46,142.42,52.8952001]
[1750507982505,89.4,142.45,142.42,53.4952001]
[1750507983092,89.4,142.45,142.42,52.8952001]
[1750507983291,89.4,142.45,142.43,0.6]
[1750507983508,89.4,142.45,142.44,35.34049985]
[1750507984295,90.12,142.45,142.44,35.34049985]
[1750507985213,89.4,142.45,142.44,35.34049985]
[1750507986511,0.72,142.45,142.44,35.34049985]
[1750507988098,5.27888893,142.45,142.44,35.34049985]
[1750507992398,4.55888893,142.46,142.44,35.34049985]
[1750507992623,5.27888893,142.46,142.44,35.34049985]
[1750507994703,0.69,142.45,142.44,35.34049985]
[1750507997320,4.55888893,142.46,142.44,35.34049985]
[1750507997520,5.24888893,142.46,142.44,35.34049985]
[1750507997696,0.69,142.45,142.44,35.34049985]
[1750508002020,150.25888893,142.45,142.42,7.02148574]
[1750508002210,240.35510243,142.44,142.42,7.02148574]
[1750508002412,5.24888893,142.43,142.42,7.02148574]
[1750508002627,10.50405893,142.43,142.42,35.32148574]
[1750508006432,10.50405893,142.43,142.42,35.34148574]
[1750508008137,10.50405893,142.43,142.42,7.02148574]
[1750508008321,10.50405893,142.43,142.42,35.34148574]
[1750508008524,10.50405893,142.43,142.42,7.02148574]
[1750508008724,10.50405893,142.43,142.42,35.34148574]
[1750508010815,5.25517,142.43,142.42,35.34148574]
[1750508011032,4.55888893,142.43,142.42,35.34148574]
[1750508015130,4.55888893,142.43,142.42,53.4952001]
[1750508016133,4.55888893,142.43,142.42,52.8952001]
[1750508018472,4.55888893,142.44,142.42,52.8952001]
[1750508018632,4.55888893,142.44,142.42,53.4952001]
[1750508021834,4.55888893,142.44,142.42,52.8952001]
[1750508025153,5.26888893,142.43,142.42,52.8952001]
[1750508025359,5.26888893,142.43,142.42,52.8752001]
[1750508026459,10.51826506,142.43,142.42,24.5752001]
[1750508026659,5.26888893,142.43,142.42,52.8752001]
[1750508027251,10.51826506,142.43,142.42,52.8752001]
[1750508027447,5.26888893,142.43,142.42,52.8752001]
[1750508028041,10.51826506,142.43,142.42,52.8752001]
[1750508028253,5.26888893,142.43,142.42,52.8752001]
[1750508028469,10.51826506,142.43,142.42,52.8752001]
[1750508028756,5.26888893,142.43,142.42,52.8752001]
[1750508028946,10.51826506,142.43,142.42,52.8752001]
[1750508029143,5.26888893,142.43,142.42,52.8752001]
[1750508029367,10.51826506,142.43,142.42,52.8752001]
[1750508029663,5.26888893,142.43,142.42,52.8752001]
[1750508029870,10.51826506,142.43,142.42,52.8752001]
[1750508030071,5.26888893,142.43,142.42,52.8752001]
[1750508030257,10.51826506,142.43,142.42,52.8752001]
[1750508030459,5.26888893,142.43,142.42,52.8752001]
[1750508030661,10.51826506,142.43,142.42,52.8752001]
[1750508030859,5.26888893,142.43,142.42,52.8752001]
[1750508031060,10.51826506,142.43,142.42,52.8752001]
[1750508031376,5.26888893,142.43,142.42,52.8752001]
[1750508031579,4.55888893,142.43,142.42,52.8752001]
[1750508033652,5.26888893,142.43,142.42,24.5752001]
[1750508033865,5.26888893,142.43,142.42,52.8752001]
[1750508036167,10.51655654,142.43,142.42,52.8752001]
[1750508036478,5.26888893,142.43,142.42,52.8752001]
[1750508036656,10.51655654,142.43,142.42,52.8752001]
[1750508036856,5.26888893,142.43,142.42,52.8752001]
[1750508037074,10.51655654,142.43,142.42,52.8752001]
[1750508037266,5.26888893,142.43,142.42,52.8752001]
[1750508037559,10.51655654,142.43,142.42,52.8752001]
[1750508037765,5.26888893,142.43,142.42,52.8752001]
[1750508038259,10.51655654,142.43,142.42,52.8752001]
[1750508038478,5.26888893,142.43,142.42,52.8752001]
[1750508038662,10.51655654,142.43,142.42,52.8752001]
[1750508038865,5.26888893,142.43,142.42,52.8752001]
[1750508039083,10.51655654,142.43,142.42,52.8752001]
[1750508039379,5.26888893,142.43,142.42,52.8752001]
[1750508039588,10.51655654,142.43,142.42,52.8752001]
[1750508039767,5.26888893,142.43,142.42,52.8752001]
[1750508039966,10.51655654,142.43,142.42,52.8752001]
[1750508040169,5.26888893,142.43,142.42,52.8752001]
[1750508040371,10.51655654,142.43,142.42,52.8752001]
[1750508040563,4.55888893,142.43,142.42,52.8752001]
[1750508040776,4.55888893,142.43,142.42,53.4752001]
[1750508041284,4.55888893,142.43,142.42,52.8752001]
[1750508043802,5.26888893,142.43,142.42,52.8752001]
[1750508044568,10.51990273,142.43,142.42,52.8752001]
[1750508044773,5.26888893,142.43,142.42,52.8752001]
[1750508044979,10.51990273,142.43,142.42,52.8752001]
[1750508048196,4.55888893,142.43,142.42,52.8752001]
[1750508048394,9.80990273,142.43,142.42,52.8752001]
[1750508048597,4.55888893,142.43,142.42,52.8752001]
[1750508048803,9.80990273,142.43,142.42,52.8752001]
[1750508049784,10.51990273,142.43,142.42,52.8752001]
[1750508080619,9.80990273,142.43,142.42,52.8752001]
[1750508085312,10.50990273,142.43,142.42,52.8752001]
[1750508093017,10.50990273,142.43,142.42,45.85371436]
[1750508094164,10.50990273,142.43,142.42,52.8752001]
[1750508097275,9.80990273,142.43,142.42,52.8752001]
[1750508097470,9.80990273,142.43,142.42,53.4752001]
[1750508097647,9.80990273,142.43,142.42,52.8752001]
[1750508100469,5.2510138,142.43,142.42,53.4752001]
[1750508100672,10.52393587,142.43,142.42,52.8752001]
[1750508102875,10.52393587,142.43,142.42,45.85371436]
[1750508103865,10.52393587,142.43,142.42,52.8752001]
[1750508108976,10.52393587,142.43,142.42,7.02148574]
[1750508109168,10.52393587,142.43,142.42,35.32148574]
[1750508111796,146.4,142.42,142.41,7.0217701]
[1750508111961,146.4,142.42,142.4,12.94232632]
[1750508111962,146.4,142.41,142.4,12.94232632]
[1750508112160,156.22393587,142.41,142.4,41.24232632]
[1750508113580,156.22393587,142.41,142.4,5.92]
[1750508113786,146.4,142.4,142.36,7.02444506]
[1750508114088,5.25888893,142.37,142.36,7.02444506]
[1750508114261,10.52393587,142.37,142.36,35.32444506]
[1750508114460,4.55888893,142.37,142.36,35.32444506]
[1750508114670,9.82393587,142.37,142.36,7.02444506]
[1750508114882,9.82393587,142.37,142.36,35.32444506]
[1750508116083,4.55888893,142.37,142.36,35.32444506]
[1750508116479,4.55888893,142.37,142.36,7.02444506]
[1750508116682,4.55888893,142.37,142.36,35.32444506]
[1750508116859,5.95504694,142.38,142.36,35.32444506]
[1750508117063,4.55888893,142.37,142.36,35.92444506]
[1750508117265,4.55888893,142.37,142.36,35.32444506]
[1750508119085,5.24888893,142.37,142.36,35.32444506]
[1750508120291,4.55888893,142.37,142.36,7.02444506]
[1750508120497,5.24888893,142.37,142.36,35.32444506]
[1750508121492,5.24888893,142.37,142.35,24.58617098]
[1750508121686,0.69,142.37,142.36,28.3]
[1750508121887,5.24888893,142.37,142.36,28.3]
[1750508122691,4.55888893,142.37,142.36,28.9]
[1750508123074,4.55888893,142.37,142.36,28.3]
[1750508123806,4.55888893,142.37,142.36,35.32444506]
[1750508130810,5.24888893,142.37,142.36,35.32444506]
[1750508134314,4.55888893,142.37,142.36,35.32444506]
[1750508135699,4.55888893,142.37,142.36,35.92444506]
[1750508136395,4.55888893,142.37,142.36,35.32444506]
[1750508139416,5.24888893,142.37,142.36,35.32444506]
[1750508140717,5.24888893,142.37,142.36,7.02444506]
[1750508140891,5.24888893,142.37,142.36,35.32444506]
[1750508141586,5.24888893,142.37,142.36,7.02444506]
[1750508141794,0.69,142.35,142.3,6.3024]
[1750508142002,5.24888893,142.32,142.29,5.92]
[1750508142210,5.24888893,142.32,142.31,148.92403076]
[1750508142921,5.24888893,142.32,142.31,155.95056647]
[1750508143302,5.24888893,142.32,142.31,127.65056647]
[1750508143509,5.24888893,142.32,142.31,155.95056647]
[1750508145439,5.24888893,142.32,142.31,66.63766177]
[1750508145596,5.24888893,142.32,142.25,7.02987697]
[1750508145597,0.7,142.29,142.25,7.02987697]
[1750508145803,5.25888893,142.26,142.25,7.02987697]
[1750508146018,5.25888893,142.26,142.25,35.32987697]
[1750508146438,4.55888893,142.26,142.25,35.32987697]
[1750508146742,4.55888893,142.26,142.25,35.92987697]
[1750508146924,7.14100905,142.26,142.25,53.50456941]
[1750508147510,7.84100905,142.29,142.25,52.90456941]
[1750508147708,7.14100905,142.26,142.25,53.50456941]
[1750508149438,7.14100905,142.26,142.25,52.90456941]
[1750508151230,7.14100905,142.26,142.25,24.60456941]
[1750508151432,7.14100905,142.26,142.25,52.92456941]
[1750508153917,146.4,142.28,142.25,52.92456941]
[1750508154121,7.14100905,142.26,142.25,52.92456941]
[1750508155042,145.7,142.28,142.25,53.52456941]
[1750508155226,7.14100905,142.26,142.25,53.52456941]
[1750508159147,7.14100905,142.26,142.25,52.92456941]
[1750508165959,7.14100905,142.26,142.25,28.32]
[1750508166857,4.57039868,142.26,142.25,28.32]
[1750508167930,5.27039868,142.26,142.25,28.32]
[1750508168130,4.57039868,142.26,142.24,5.92]
[1750508168358,0.7,142.25,142.24,5.92]
[1750508168656,4.57039868,142.25,142.24,5.92]
[1750508168959,4.57039868,142.25,142.24,34.24]
[1750508168960,150.97039868,142.25,142.24,34.24]
[1750508169164,150.97039868,142.25,142.24,5.92]
[1750508169338,150.97039868,142.25,142.24,34.24]
[1750508169529,0.7,142.24,142.19,11.9758]
[1750508169733,4.57039868,142.21,142.2,28.32]
[1750508170247,5.27039868,142.21,142.19,5.92]
[1750508170443,0.7,142.21,142.2,28.32]
[1750508170648,5.27039868,142.21,142.2,28.32]
[1750508170849,7.84709682,142.21,142.2,28.32]
[1750508171355,7.84709682,142.21,142.16,98.45796496]
[1750508171356,0.7,142.2,142.16,104.37796496]
[1750508171556,7.14709682,142.17,142.16,104.37796496]
[1750508171739,7.84709682,142.17,142.16,98.45796496]
[1750508172071,7.84709682,142.17,142.15,28.34]
[1750508172072,152.73455186,142.16,142.15,28.34]
[1750508172361,152.73455186,142.16,142.14,28.94]
[1750508172362,145.7,142.16,142.14,28.94]
[1750508172660,7.14709682,142.15,142.12,0.6]
[1750508172857,0.7,142.17,142.13,28.38]
[1750508173054,89.4,142.15,142.13,28.38]
[1750508173736,90.1,142.15,142.13,28.38]
[1750508173938,96.54709682,142.14,142.12,5.92]
[1750508174131,96.54709682,142.13,142.12,5.92]
[1750508174336,89.4,142.13,142.12,34.3]
[1750508174553,96.54709682,142.13,142.12,34.3]
[1750508176765,96.54709682,142.13,142.12,41.33630734]
[1750508178656,7.14709682,142.13,142.12,41.33630734]
[1750508179040,146.44,142.15,142.12,41.33630734]
[1750508179245,7.14709682,142.13,142.12,41.33630734]
[1750508179856,7.14709682,142.14,142.12,41.33630734]
[1750508180055,7.14709682,142.14,142.13,0.6]
[1750508180257,145.7,142.15,142.13,0.6]
[1750508180488,152.84709682,142.15,142.14,29.0]
[1750508180755,145.7,142.15,142.14,29.0]
[1750508180989,145.7,142.15,142.14,36.03531729]
[1750508183371,21.77067884,142.18,142.15,6.1145]
[1750508183691,21.77067884,142.18,142.16,29.0]
[1750508184264,14.62358202,142.18,142.16,29.0]
[1750508184483,14.62358202,142.18,142.17,7.03383273]
[1750508185582,21.77067884,142.18,142.17,7.63383273]
[1750508185883,14.62358202,142.18,142.17,7.03383273]
[1750508192104,14.62358202,142.18,142.17,7.63383273]
[1750508192281,14.62358202,142.18,142.17,14.78092955]
[1750508193008,14.62358202,142.18,142.17,33.43057841]
[1750508193370,7.14709682,142.23,142.17,86.18432391]
[1750508193564,7.14709682,142.23,142.2,26.6]
[1750508193769,7.14709682,142.23,142.21,28.4]
[1750508194009,7.14709682,142.23,142.22,7.03135986]
[1750508195189,145.7,142.24,142.22,7.03135986]
[1750508195395,7.14709682,142.23,142.21,7.03185429]
[1750508195589,7.14709682,142.23,142.22,28.4]
[1750508196798,7.14709682,142.23,142.22,35.43135986]
[1750508197680,145.7,142.24,142.22,36.03135986]
[1750508198687,145.7,142.24,142.23,0.6]
[1750508199813,145.7,142.24,142.23,7.63086549]
[1750508199990,152.84709682,142.24,142.23,7.03086549]
[1750508200984,153.58709682,142.24,142.23,7.03086549]
[1750508201915,145.7,142.24,142.23,7.03086549]
[1750508207219,152.84709682,142.24,142.23,7.03086549]
[1750508207519,152.84709682,142.24,142.22,7.03135986]
[1750508207816,7.14709682,142.23,142.22,7.03135986]
[1750508208018,97.25709682,142.23,142.22,35.41135986]
[1750508211194,7.85709682,142.23,142.22,35.41135986]
[1750508218841,7.85709682,142.23,142.22,35.39135986]
[1750508221546,18.64964886,142.21,142.15,7.03482237]
[1750508221725,7.85709682,142.16,142.15,7.03482237]
[1750508222048,7.85709682,142.16,142.15,35.45482237]
[1750508222946,7.85709682,142.16,142.14,17.58744038]
[1750508223250,7.14709682,142.15,142.14,24.62275767]
[1750508223548,7.14709682,142.15,142.14,53.04275767]
[1750508231832,0.71,142.18,142.15,0.6]
[1750508231833,7.14709682,142.18,142.15,0.6]
[1750508232027,152.84709682,142.19,142.16,28.42]
[1750508232241,145.7,142.18,142.17,28.42]
[1750508233934,11.4897641,142.21,142.17,62.86964568]
[1750508234140,7.85709682,142.19,142.18,7.03333802]
[1750508234450,7.14709682,142.19,142.18,7.03333802]
[1750508235543,152.84709682,142.2,142.18,7.03333802]
[1750508235859,153.55709682,142.2,142.19,28.46]
[1750508236039,7.85709682,142.2,142.19,28.46]
[1750508236446,7.85709682,142.2,142.19,35.49284337]
[1750508238051,11.4897641,142.21,142.19,35.49284337]
[1750508238257,7.14709682,142.2,142.19,35.49284337]
[1750508239036,7.85709682,142.2,142.19,35.49284337]
[1750508239845,53.90715663,142.18,142.17,24.04386262]
[1750508240659,145.7,142.19,142.17,24.04386262]
[1750508241564,145.7,142.19,142.17,31.07769535]
[1750508246770,64.78170465,142.16,142.15,0.6]
[1750508247063,7.85709682,142.16,142.15,0.6]
[1750508248068,7.85709682,142.16,142.15,7.63482237]
[1750508252063,7.14709682,142.16,142.15,7.63482237]
[1750508252265,7.14709682,142.17,142.15,25.22187829]
[1750508252471,89.4,142.16,142.15,25.22187829]
[1750508253564,96.54709682,142.16,142.15,25.22187829]
[1750508253755,97.25709682,142.16,142.15,25.22187829]
[1750508256948,209.87812171,142.15,142.1,0.6]
[1750508257150,217.02521853,142.14,142.11,6.6]
[1750508257355,209.87812171,142.14,142.11,6.6]
[1750508257791,209.87812171,142.14,142.11,13.14709682]
[1750508258080,209.87812171,142.14,142.11,13.74709682]
[1750508258271,209.87812171,142.14,142.12,17.59076836]
[1750508258475,209.87812171,142.14,142.12,24.6270757]
[1750508259475,209.87812171,142.14,142.12,25.2270757]
[1750508260188,209.87812171,142.14,142.12,24.6270757]
[1750508261059,209.87812171,142.14,142.12,25.2270757]
[1750508261461,64.17812171,142.13,142.12,43.87672456]
[1750508261766,64.17812171,142.13,142.12,57.17222138]
[1750508265676,64.17812171,142.13,142.12,50.02512456]
[1750508265984,64.17812171,142.13,142.12,57.17222138]
[1750508268561,64.17812171,142.13,142.12,56.57222138]
[1750508271294,64.17812171,142.13,142.12,37.92257252]
[1750508271665,64.17812171,142.13,142.12,38.52257252]
[1750508273188,146.43,142.16,142.15,33.03482237]
[1750508279578,146.43,142.16,142.14,7.03531729]
[1750508280614,0.73,142.15,142.14,7.03531729]
[1750508280786,7.87709682,142.15,142.14,7.03531729]
[1750508282504,0.73,142.15,142.12,24.6270757]
[1750508283206,89.4,142.14,142.12,24.6270757]
[1750508283775,89.4,142.14,142.13,7.14709682]
[1750508284377,0.73,142.13,142.12,53.0870757]
[1750508284576,0.73,142.13,142.12,24.6270757]
[1750508289716,7.87709682,142.13,142.12,7.03630734]
[1750508293726,76.36369266,142.11,142.09,58.78026294]
[1750508294018,76.36369266,142.1,142.09,58.78026294]
[1750508294905,76.36369266,142.1,142.09,65.81805588]
[1750508296600,76.36369266,142.1,142.09,73.5651527]
[1750508296816,145.7,142.12,142.09,66.41805588]
[1750508298706,145.7,142.12,142.09,73.5651527]
[1750508299429,145.7,142.12,142.09,66.41805588]
[1750508299725,145.7,142.12,142.09,73.5651527]
[1750508300510,89.4,142.11,142.1,7.14709682]
[1750508300934,89.4,142.11,142.09,73.5651527]
[1750508301917,89.4,142.11,142.1,35.49729767]
[1750508304832,90.14,142.11,142.1,35.49729767]
[1750508305131,90.14,142.11,142.1,7.03729767]
[1750508305722,0.74,142.11,142.1,7.03729767]
[1750508308241,7.88709682,142.11,142.1,7.03729767]
[1750508309136,23.58243939,142.09,142.06,33.14709682]
[1750508309434,0.74,142.09,142.08,6.0]
[1750508310232,146.44,142.1,142.08,13.14709682]
[1750508310428,145.7,142.1,142.08,13.14709682]
[1750508311449,146.44,142.1,142.09,7.03779294]
[1750508315543,153.58709682,142.1,142.09,7.03779294]
[1750508320535,58.76524782,142.07,142.06,39.12709682]
[1750508320734,146.44,142.09,142.06,39.12709682]
[1750508321649,145.7,142.09,142.06,63.76457393]
[1750508321853,146.44,142.09,142.06,63.76457393]
[1750508322026,0.74,142.08,142.06,63.76457393]
[1750508322822,145.7,142.09,142.06,63.76457393]
[1750508323050,146.44,142.09,142.06,63.76457393]
[1750508323439,145.7,142.09,142.06,38.36457393]
[1750508323628,146.44,142.09,142.06,37.76457393]
[1750508324540,145.7,142.09,142.06,37.76457393]
[1750508324738,146.43,142.09,142.06,37.76457393]
[1750508325453,146.43,142.09,142.07,7.14709682]
[1750508325654,146.43,142.09,142.06,37.76457393]
[1750508326460,89.4,142.08,142.06,37.76457393]
[1750508330552,90.13,142.08,142.06,37.76457393]
[1750508332434,89.4,142.07,142.06,37.76457393]
[1750508332957,89.4,142.07,142.06,35.1975132]
[1750508334334,90.13,142.07,142.06,35.1975132]
[1750508335777,89.4,142.07,142.06,35.1975132]
[1750508338366,0.73,142.08,142.06,35.1975132]
[1750508340671,0.73,142.08,142.06,63.6175132]
[1750508342545,0.73,142.08,142.06,35.1975132]
[1750508342864,0.73,142.08,142.06,30.61747711]
[1750508343246,0.73,142.06,142.05,7.03977472]
[1750508343448,5.31003609,142.06,142.05,7.03977472]
[1750508344156,145.7,142.07,142.05,12.21981081]
[1750508344364,145.7,142.07,142.06,4.58003609]
[1750508345145,146.43,142.13,142.09,26.6]
[1750508345450,146.43,142.13,142.12,7.03630734]
[1750508346766,151.01003609,142.13,142.12,7.03630734]
[1750508346957,153.58362502,142.13,142.12,7.03630734]
[1750508347363,153.58362502,142.13,142.1,17.59289019]
[1750508347364,152.85362502,142.13,142.1,24.63018786]
[1750508347559,7.15362502,142.12,142.1,24.63018786]
[1750508347758,0.73,142.11,142.1,24.63018786]
[1750508350552,7.88362502,142.11,142.1,7.03729767]
[1750508351575,0.73,142.11,142.1,7.03729767]
[1750508352372,0.73,142.11,142.08,24.74926638]
[1750508352373,0.73,142.11,142.09,7.03779294]
[1750508352672,145.7,142.1,142.09,7.03779294]
[1750508354375,146.4,142.1,142.09,7.03779294]
[1750508356059,64.7665657,142.08,142.07,35.73362502]
[1750508356262,145.7,142.09,142.07,35.73362502]
[1750508357180,145.7,142.09,142.08,7.15362502]
[1750508359177,145.7,142.09,142.08,14.1919133]
[1750508359985,145.7,142.09,142.08,14.7919133]
[1750508360193,145.7,142.09,142.08,14.1919133]
[1750508360595,145.7,142.09,142.08,14.7919133]
[1750508360904,145.7,142.09,142.08,67.06176216]
[1750508364973,0.7,142.14,142.08,119.84892432]
[1750508365287,152.85362502,142.15,142.11,7.15362502]
[1750508365288,146.4,142.13,142.11,7.15362502]
[1750508365494,146.4,142.13,142.11,35.71362502]
[1750508366086,146.4,142.13,142.12,7.03630734]
[1750508368101,0.7,142.13,142.11,28.56]
[1750508368282,0.7,142.13,142.1,53.30648698]
[1750508368997,89.4,142.12,142.11,7.15362502]
[1750508370180,89.4,142.12,142.11,14.19042749]
[1750508371115,89.4,142.12,142.11,7.03680247]
[1750508371285,89.4,142.12,142.11,14.19042749]
[1750508372983,85.4,142.12,142.11,14.19042749]
[1750508373183,145.7,142.12,142.11,14.19042749]
[1750508374482,146.4,142.12,142.11,7.03680247]
[1750508376106,146.4,142.12,142.1,24.63015963]
[1750508376883,89.4,142.11,142.1,24.63015963]
[1750508377214,90.1,142.11,142.1,30.67015963]
[1750508382714,0.7,142.11,142.1,30.67015963]
[1750508383013,0.7,142.11,142.1,30.74053263]
[1750508385721,145.7,142.12,142.1,30.74053263]
[1750508385891,145.7,142.12,142.11,7.15362502]
[1750508386524,145.7,142.12,142.11,14.19042749]
[1750508388611,145.7,142.12,142.11,7.03680247]
[1750508391724,146.39,142.12,142.11,7.03680247]
[1750508392922,145.7,142.12,142.11,7.03680247]
[1750508393624,146.39,142.12,142.11,7.03680247]
[1750508400503,58.65996257,142.1,142.09,33.07731216]
[1750508400828,146.39,142.11,142.09,33.07731216]
[1750508402533,146.39,142.11,142.09,40.1151051]
[1750508405641,146.39,142.11,142.1,11.61460983]
[1750508406433,145.7,142.11,142.1,12.21460983]
[1750508406611,145.7,142.11,142.1,11.61460983]
[1750508407917,145.7,142.11,142.1,12.21460983]
[1750508408332,0.69,142.18,142.13,45.24964886]
[1750508408629,5.26731216,142.18,142.14,34.48]
[1750508408936,0.69,142.17,142.14,39.05731216]
[1750508410026,0.69,142.17,142.15,7.03482237]
[1750508410027,4.57731216,142.17,142.15,7.03482237]
[1750508410227,0.69,142.16,142.15,7.03482237]
[1750508411236,153.53985339,142.16,142.15,7.03482237]
[1750508412033,0.69,142.15,142.13,7.03581228]
[1750508412221,146.39,142.14,142.13,7.03581228]
[1750508414135,0.68,142.13,142.12,7.03630734]
[1750508414335,7.82985339,142.13,142.12,7.03630734]
[1750508415248,58.7705328,142.1,142.09,76.81692909]
[1750508415416,146.38,142.12,142.09,76.81692909]
[1750508415615,146.38,142.12,142.09,69.6670757]